bitfinex/quotes_BTCUSD_20240823
["timestamp","ask_amount","ask_price","bid_price","bid_amount"]
[1724445093628,2.3963048,63763.0,63762.0,1e-08]
[1724445093833,2.4073048,63763.0,63762.0,1e-08]
[1724445095283,2.40324625,63763.0,63762.0,1e-08]
[1724445096310,2.47176274,63763.0,63762.0,1e-08]
[1724445096311,2.40724625,63763.0,63762.0,1e-08]
[1724445096556,2.63574077,63763.0,63762.0,1e-08]
[1724445097528,2.94940177,63763.0,63762.0,1e-08]
[1724445097774,2.63574522,63763.0,63762.0,1e-08]
[1724445098291,2.63174522,63763.0,63762.0,1e-08]
[1724445098536,2.56722948,63763.0,63762.0,1e-08]
[1724445098787,2.63174527,63763.0,63762.0,1e-08]
[1724445100282,2.63374527,63763.0,63762.0,1e-08]
[1724445100518,2.63574527,63763.0,63762.0,1e-08]
[1724445101268,1.102831,63762.0,63761.0,0.00903501]
[1724445101516,2.26586588,63762.0,63761.0,0.00903501]
[1724445101774,2.36586588,63762.0,63761.0,0.00903501]
[1724445102016,2.52434713,63762.0,63761.0,0.00903501]
[1724445102265,2.48276588,63762.0,63761.0,0.00903501]
[1724445102530,2.64123372,63762.0,63761.0,0.00903501]
[1724445102766,2.65023378,63762.0,63761.0,0.00903501]
[1724445103013,2.50176588,63762.0,63761.0,0.00903501]
[1724445104290,2.81543188,63762.0,63761.0,0.00903501]
[1724445104527,2.81531928,63762.0,63761.0,0.00903501]
[1724445104809,2.8069589,63762.0,63761.0,0.00903501]
[1724445108758,0.7843,63751.0,63750.0,1e-08]
[1724445108953,0.87816581,63751.0,63750.0,1e-08]
[1724445109159,1.22037339,63751.0,63750.0,1e-08]
[1724445109363,1.24496946,63751.0,63750.0,1e-08]
[1724445109592,1.2271715,63751.0,63750.0,1e-08]
[1724445110202,1.5408915,63751.0,63750.0,1e-08]
[1724445111849,1.70487028,63751.0,63750.0,1e-08]
[1724445112315,1.86887326,63751.0,63750.0,1e-08]
[1724445112752,1.96887326,63751.0,63750.0,1e-08]
[1724445112976,2.70895058,63751.0,63750.0,1e-08]
[1724445113169,2.78948314,63751.0,63750.0,1e-08]
[1724445113409,1.9175318,63751.0,63750.0,1e-08]
[1724445113590,1.8229318,63751.0,63750.0,1e-08]
[1724445113740,1.8259318,63751.0,63750.0,1e-08]
[1724445114124,1.94319221,63751.0,63750.0,1e-08]
[1724445114352,1.94319221,63751.0,63735.0,0.156898]
[1724445114353,1.413316,63725.0,63713.0,0.0973]
[1724445114564,1.36347098,63725.0,63714.0,0.49229154]
[1724445114763,1.4103107,63725.0,63714.0,0.49229154]
[1724445114966,1.4103107,63725.0,63713.0,0.0973]
[1724445114967,1.81152075,63725.0,63713.0,0.0973]
[1724445115174,1.85823912,63725.0,63713.0,0.0973]
[1724445115379,1.95177882,63725.0,63713.0,0.0973]
[1724445115584,1.95177882,63725.0,63714.0,0.0001126]
[1724445115778,1.78778545,63725.0,63714.0,0.0001126]
[1724445115987,1.79678545,63725.0,63713.0,0.0974126]
[1724445116189,1.80578545,63725.0,63713.0,0.0973]
[1724445116390,1.46717195,63725.0,63715.0,0.0526126]
[1724445116599,1.38807821,63725.0,63717.0,0.0001126]
[1724445116848,1.41607821,63725.0,63716.0,0.0001126]
[1724445116990,1.08823021,63725.0,63716.0,0.0001126]
[1724445117196,1.08823021,63725.0,63724.0,0.577165]
[1724445117197,0.03860723,63725.0,63724.0,0.577165]
[1724445117434,0.31077142,63725.0,63724.0,0.106386]
[1724445117992,0.31077142,63725.0,63724.0,0.009086]
[1724445117993,0.6326984,63725.0,63724.0,0.009086]
[1724445118193,0.9325464,63725.0,63724.0,0.009086]
[1724445118422,0.9405464,63725.0,63724.0,0.009086]
[1724445119053,1.0627464,63725.0,63724.0,0.009086]
[1724445119428,1.0697464,63725.0,63724.0,0.009086]
[1724445119647,1.93910114,63725.0,63724.0,0.009086]
[1724445119978,2.03598854,63725.0,63724.0,0.009086]
[1724445120176,2.04398854,63725.0,63724.0,0.009086]
[1724445120387,2.06966481,63725.0,63724.0,0.009086]
[1724445120595,2.02298854,63725.0,63724.0,0.009086]
[1724445120796,2.09308228,63725.0,63724.0,0.009086]
[1724445121009,2.43100432,63725.0,63724.0,0.009086]
[1724445121207,2.33747921,63725.0,63724.0,0.009086]
[1724445121486,2.02098854,63725.0,63724.0,0.009086]
[1724445121690,2.09097224,63725.0,63724.0,0.009086]
[1724445121860,2.09797224,63725.0,63724.0,0.00931576]
[1724445122029,2.02798854,63725.0,63724.0,0.00931576]
[1724445122238,0.1192874,63716.0,63715.0,0.0525]
[1724445122453,0.58929,63709.0,63708.0,0.006132]
[1724445122672,1.65619857,63709.0,63708.0,0.006132]
[1724445122877,1.78081325,63709.0,63708.0,0.006132]
[1724445123112,1.46299885,63709.0,63708.0,0.006132]
[1724445123311,0.28861766,63709.0,63708.0,0.006132]
[1724445123486,0.76050766,63709.0,63708.0,0.006132]
[1724445123686,0.28961766,63709.0,63708.0,0.006132]
[1724445123887,0.28861766,63709.0,63708.0,0.006132]
[1724445124090,0.18861766,63709.0,63708.0,0.163098]
[1724445124287,0.18861766,63709.0,63708.0,0.006132]
[1724445124491,0.02461468,63709.0,63708.0,0.9130746]
[1724445124980,0.02461468,63709.0,63708.0,1.0065746]
[1724445125225,0.02461468,63709.0,63708.0,1.006462]
[1724445125417,0.02461468,63709.0,63708.0,1.0065746]
[1724445125620,0.03861468,63709.0,63708.0,1.0065746]
[1724445125954,0.02461468,63709.0,63708.0,1.0065746]
[1724445126158,0.03161468,63709.0,63708.0,1.0065746]
[1724445126387,0.03961468,63709.0,63708.0,1.0065746]
[1724445126585,0.03961468,63709.0,63708.0,1.3205066]
[1724445126957,0.03261468,63709.0,63708.0,1.3205066]
[1724445127396,0.02461468,63709.0,63708.0,1.3214152]
[1724445127826,0.02561468,63709.0,63708.0,1.3214152]
[1724445128011,0.02561468,63709.0,63708.0,1.79935018]
[1724445129156,0.157892,63738.0,63728.0,0.0001126]
[1724445129364,0.157892,63738.0,63732.0,0.156905]
[1724445129365,0.32089798,63737.0,63732.0,0.156905]
[1724445129569,0.27216419,63736.0,63732.0,0.156905]
[1724445129794,0.16400298,63735.0,63732.0,0.156905]
[1724445130005,0.16400298,63735.0,63733.0,0.156903]
[1724445130210,0.16400298,63735.0,63730.0,0.31382]
[1724445130414,0.16400298,63735.0,63732.0,0.156905]
[1724445130618,0.1,63734.0,63733.0,0.156904]
[1724445130816,0.1,63734.0,63729.0,0.313827]
[1724445131024,0.1,63734.0,63733.0,0.156904]
[1724445131223,0.1,63734.0,63732.0,0.0001126]
[1724445131424,0.1,63734.0,63733.0,0.1570166]
[1724445131627,0.1,63734.0,63727.0,0.523835]
[1724445131628,0.1,63734.0,63728.0,0.0001126]
[1724445131917,0.156916,63728.0,63727.0,0.0977]
[1724445132123,0.156916,63728.0,63723.0,0.1223]
[1724445132124,0.16400298,63728.0,63723.0,0.2201126]
[1724445132456,0.16400298,63728.0,63725.0,0.0001126]
[1724445132660,0.16400298,63728.0,63727.0,0.156919]
[1724445133069,0.16400298,63728.0,63726.0,0.156921]
[1724445133272,0.16400298,63728.0,63723.0,0.533856]
[1724445133273,0.176053,63728.0,63723.0,0.533856]
[1724445133480,0.176053,63728.0,63725.0,0.156924]
[1724445133481,0.174053,63728.0,63725.0,0.156924]
[1724445133684,0.174053,63728.0,63725.0,0.1570366]
[1724445133857,0.174053,63728.0,63726.0,0.0001126]
[1724445134076,0.174053,63728.0,63727.0,0.0001126]
[1724445134281,0.174053,63728.0,63724.0,0.1570376]
[1724445134498,0.19865831,63728.0,63727.0,0.0001126]
[1724445134730,0.19665831,63728.0,63726.0,0.0001126]
[1724445134934,0.19665831,63728.0,63723.0,0.22]
[1724445135144,0.00100002,63727.0,63724.0,0.0001126]
[1724445135463,0.00100002,63727.0,63724.0,0.1570376]
[1724445135672,0.19665831,63728.0,63725.0,0.156922]
[1724445135853,0.19665831,63728.0,63725.0,0.1570346]
[1724445135990,0.35357531,63728.0,63725.0,0.0031126]
[1724445136190,0.35357531,63728.0,63723.0,0.22]
[1724445136191,0.00100002,63727.0,63723.0,0.22]
[1724445136555,0.00100002,63727.0,63724.0,0.160925]
[1724445136754,0.19665831,63728.0,63725.0,0.1570356]
[1724445137197,0.19765833,63728.0,63725.0,0.1600356]
[1724445137610,0.19665831,63728.0,63724.0,0.156926]
[1724445137819,0.13724875,63727.0,63725.0,0.156924]
[1724445138443,0.13724875,63727.0,63726.0,0.156921]
[1724445138664,0.13724875,63727.0,63724.0,0.1570376]
[1724445138881,0.13724875,63727.0,63724.0,0.004]
[1724445138882,0.156919,63727.0,63724.0,0.004]
[1724445139092,0.00100002,63727.0,63723.0,0.22]
[1724445139298,0.00100002,63727.0,63725.0,0.156924]
[1724445139507,0.19765833,63728.0,63724.0,0.156925]
[1724445139712,0.19765833,63728.0,63725.0,0.156923]
[1724445139713,0.001,63727.0,63725.0,0.156923]
[1724445139922,0.001,63727.0,63724.0,0.0001126]
[1724445140117,0.001,63727.0,63645.0,0.50198106]
[1724445140118,0.314853,63724.0,63718.0,0.0001126]
[1724445140372,0.314853,63724.0,63717.0,0.0978]
[1724445140373,0.156937,63720.0,63717.0,0.0978]
[1724445140575,0.00100002,63719.0,63717.0,0.0978]
[1724445140781,0.15793902,63719.0,63717.0,0.0978]
[1724445140986,0.75005017,63718.0,63714.0,0.0978]
[1724445141196,0.156944,63717.0,63714.0,0.0979126]
[1724445141403,0.16400298,63718.0,63716.0,0.1570576]
[1724445141613,0.16400298,63718.0,63713.0,0.313904]
[1724445141614,0.0246084,63719.0,63718.0,0.4709366]
[1724445141823,0.0246084,63719.0,63718.0,1.3190026]
[1724445142239,0.0246084,63719.0,63718.0,1.6328856]
[1724445143269,0.0256084,63719.0,63718.0,1.6398856]
[1724445143683,0.0266084,63719.0,63718.0,1.6398856]
[1724445146008,0.0246084,63719.0,63718.0,1.6328856]
[1724445146258,0.0256084,63719.0,63718.0,1.6398856]
[1724445146480,0.0266084,63719.0,63718.0,1.6328856]
[1724445146668,0.0256084,63719.0,63718.0,1.81988858]
[1724445146901,0.0266084,63719.0,63718.0,1.82788858]
[1724445147533,0.0266084,63719.0,63718.0,2.14277158]
[1724445147958,0.000826,63727.0,63726.0,1.6265056]
[1724445148171,0.000826,63727.0,63726.0,2.12735158]
[1724445148380,0.000826,63727.0,63726.0,2.12935158]
[1724445148599,0.000826,63727.0,63726.0,2.12735158]
[1724445149049,0.000826,63727.0,63726.0,2.13035158]
[1724445149457,0.001826,63727.0,63726.0,2.13635158]
[1724445149638,0.002826,63727.0,63726.0,2.14735158]
[1724445149895,0.000826,63727.0,63726.0,2.12735158]
[1724445150748,0.000826,63727.0,63726.0,1.81350858]
[1724445150956,0.000826,63727.0,63726.0,1.81450858]
[1724445151378,0.000826,63727.0,63726.0,1.82850858]
[1724445151586,0.000826,63727.0,63726.0,1.81350858]
[1724445151797,0.001826,63727.0,63726.0,1.82550858]
[1724445151999,0.001826,63727.0,63726.0,1.83950858]
[1724445152203,0.000826,63727.0,63726.0,1.82750858]
[1724445152660,0.001826,63727.0,63726.0,1.83950858]
[1724445153092,0.001826,63727.0,63726.0,1.3386626]
[1724445154352,0.001826,63727.0,63726.0,1.0108196]
[1724445154559,0.001826,63727.0,63726.0,1.0248196]
[1724445154760,0.000826,63727.0,63726.0,0.8959196]
[1724445154941,0.000826,63727.0,63726.0,0.8819196]
[1724445155168,0.001826,63727.0,63726.0,0.9019196]
[1724445155584,0.000826,63727.0,63726.0,0.8819196]
[1724445155795,0.000826,63727.0,63726.0,0.8959196]
[1724445156001,0.001826,63727.0,63726.0,0.8879196]
[1724445156410,0.001826,63727.0,63726.0,0.9019196]
[1724445158911,0.001826,63727.0,63726.0,0.1173126]
[1724445159130,0.001826,63727.0,63726.0,0.490764]
[1724445159542,0.001826,63727.0,63726.0,0.4908766]
[1724445159748,0.001826,63727.0,63726.0,0.8047196]
[1724445160161,0.001826,63727.0,63726.0,1.1185626]
[1724445160371,0.001826,63727.0,63726.0,1.2356626]
[1724445160596,0.001826,63727.0,63726.0,1.3260626]
[1724445160805,0.02460214,63729.0,63728.0,1.0985276]
[1724445161852,0.02560214,63729.0,63728.0,1.1035276]
[1724445162636,0.02560214,63729.0,63728.0,1.1155276]
[1724445163618,0.02560214,63729.0,63728.0,0.8016946]
[1724445163836,0.02560214,63729.0,63728.0,0.4878616]
[1724445165792,0.02642814,63729.0,63728.0,0.4878616]
[1724445165991,0.02642814,63729.0,63728.0,0.173916]
[1724445166631,0.02642814,63729.0,63728.0,0.1740286]
[1724445171044,0.02642814,63729.0,63728.0,0.173916]
[1724445171242,0.02642814,63729.0,63728.0,0.1740286]
[1724445171439,0.02642814,63729.0,63728.0,0.4878616]
[1724445171743,0.02642814,63729.0,63728.0,0.8016946]
[1724445176196,0.3291113,63729.0,63728.0,0.017]
[1724445176417,1.89227073,63729.0,63728.0,0.017]
[1724445176941,1.9004921,63729.0,63728.0,0.017]
[1724445177146,1.8994921,63729.0,63728.0,0.012]
[1724445177348,0.784582,63728.0,63727.0,0.001174]
[1724445177610,0.79669662,63728.0,63727.0,0.001174]
[1724445179061,0.48286362,63728.0,63727.0,0.001174]
[1724445179268,0.55316657,63728.0,63727.0,0.001174]
[1724445179447,0.22920919,63729.0,63728.0,0.0001126]
[1724445179827,0.02542814,63729.0,63728.0,0.1570286]
[1724445179992,0.02542814,63729.0,63728.0,0.7846946]
[1724445180216,0.02542814,63729.0,63728.0,0.5883616]
[1724445180426,0.02542814,63729.0,63728.0,0.7846946]
[1724445181522,0.000826,63729.0,63728.0,0.7846946]
[1724445181724,0.001826,63729.0,63728.0,0.7896946]
[1724445181918,0.001826,63729.0,63728.0,1.3144276]
[1724445182276,0.001826,63729.0,63728.0,1.0005946]
[1724445182479,0.001826,63729.0,63728.0,1.0055946]
[1724445183032,0.001826,63729.0,63728.0,0.6867616]
[1724445183033,0.000826,63729.0,63728.0,0.6867616]
[1724445183436,0.000826,63729.0,63728.0,0.6887616]
[1724445183649,0.000826,63729.0,63728.0,1.0025946]
[1724445183780,0.000826,63729.0,63728.0,0.5692616]
[1724445184253,0.000826,63729.0,63728.0,0.5742616]
[1724445185097,0.000826,63729.0,63728.0,0.0101126]
[1724445185320,0.000826,63729.0,63728.0,0.01]
[1724445185727,0.21771175,63729.0,63728.0,0.01]
[1724445185951,0.84435538,63729.0,63728.0,0.01]
[1724445186135,0.59857468,63729.0,63728.0,0.0101126]
[1724445186285,0.01293268,63729.0,63728.0,0.0101126]
[1724445186484,0.000826,63729.0,63728.0,0.0051126]
[1724445186753,0.000826,63729.0,63728.0,0.00081421]
[1724445186754,0.15774,63729.0,63728.0,0.00081421]
[1724445186898,0.15774,63729.0,63728.0,0.00481421]
[1724445187303,0.15774,63729.0,63728.0,0.0041126]
[1724445187505,0.15774,63729.0,63728.0,0.0001126]
[1724445187704,0.15774,63729.0,63728.0,0.0011126]
[1724445187933,0.24011844,63729.0,63728.0,0.0011126]
[1724445188345,0.24013083,63729.0,63728.0,0.001]
[1724445188543,0.26356057,63729.0,63728.0,0.001]
[1724445188747,0.59355119,63729.0,63728.0,0.001]
[1724445188976,0.49983222,63729.0,63728.0,0.001]
[1724445189189,0.1698416,63729.0,63728.0,0.001]
[1724445189339,0.59316921,63729.0,63728.0,0.001]
[1724445189535,0.49945024,63729.0,63728.0,0.001]
[1724445189960,0.81327824,63729.0,63728.0,0.001]
[1724445190162,0.90699721,63729.0,63728.0,0.001]
[1724445190739,1.22082521,63729.0,63728.0,0.001]
[1724445190968,1.33572521,63729.0,63728.0,0.001]
[1724445191197,1.43691258,63729.0,63728.0,0.001]
[1724445191881,1.34320624,63729.0,63728.0,0.001]
[1724445192275,1.02937824,63729.0,63728.0,0.0011126]
[1724445192480,0.80927093,63729.0,63728.0,0.0011126]
[1724445192613,0.43625693,63729.0,63728.0,0.0992]
[1724445192817,0.43625693,63729.0,63728.0,0.001]
[1724445193222,0.43525234,63729.0,63728.0,0.0011126]
[1724445193801,0.43525254,63729.0,63728.0,0.0011126]
[1724445194020,0.0129278,63729.0,63728.0,0.0011126]
[1724445194217,0.08320192,63729.0,63728.0,0.0011126]
[1724445194634,0.08320192,63729.0,63728.0,0.001]
[1724445194834,0.0129278,63729.0,63728.0,0.0011126]
[1724445195853,0.0129278,63729.0,63728.0,0.001]
[1724445196598,0.59384739,63729.0,63728.0,0.001]
[1724445197399,0.43693339,63729.0,63728.0,0.001]
[1724445197608,0.33111467,63729.0,63728.0,0.001]
[1724445197820,0.34336677,63729.0,63728.0,0.001]
[1724445198016,0.34336244,63729.0,63728.0,0.001]
[1724445198183,0.50027644,63729.0,63728.0,0.001]
[1724445198666,0.61748733,63729.0,63728.0,0.001]
[1724445198904,0.61744792,63729.0,63728.0,0.001]
[1724445200562,0.50022991,63729.0,63728.0,0.001]
[1724445200801,0.81405791,63729.0,63728.0,0.001]
[1724445200975,0.50022991,63729.0,63728.0,0.001]
[1724445201920,0.50022991,63729.0,63727.0,0.0020826]
[1724445202135,0.4597832,63728.0,63727.0,0.0020826]
[1724445202345,0.4597832,63728.0,63727.0,0.0021952]
[1724445203239,0.6166992,63728.0,63727.0,0.0021952]
[1724445203795,0.6166992,63728.0,63727.0,0.0031952]
[1724445203991,0.61670138,63728.0,63727.0,0.0031952]
[1724445204758,0.61670138,63728.0,63727.0,0.0030826]
[1724445204981,0.93053438,63728.0,63727.0,0.0030826]
[1724445205189,0.91843039,63728.0,63727.0,0.0030826]
[1724445205402,0.93053314,63728.0,63727.0,0.0030826]
[1724445206519,0.61670014,63728.0,63727.0,0.0030826]
[1724445206930,0.93053314,63728.0,63727.0,0.0030826]
[1724445207135,2.30533285,63728.0,63727.0,0.0030826]
[1724445207343,0.470809,63720.0,63719.0,0.0009086]
[1724445207634,1.40857583,63720.0,63719.0,0.0009086]
[1724445207842,1.79355255,63720.0,63719.0,0.0009086]
[1724445208045,1.47967955,63720.0,63719.0,0.0009086]
[1724445208158,0.96634789,63720.0,63719.0,0.0010212]
[1724445208360,1.08345269,63720.0,63719.0,0.0010212]
[1724445208966,1.08345269,63720.0,63719.0,0.0039086]
[1724445209165,1.08345269,63720.0,63719.0,0.0069086]
[1724445209423,1.08345269,63720.0,63719.0,0.0040212]
[1724445209424,0.57005633,63720.0,63719.0,0.0040212]
[1724445209670,0.47636916,63720.0,63719.0,0.0070212]
[1724445210066,0.47636916,63720.0,63719.0,0.0069086]
[1724445210269,0.31943316,63720.0,63719.0,0.0069086]
[1724445210685,0.4131112,63720.0,63719.0,0.0069086]
[1724445210917,0.59347396,63720.0,63719.0,0.0069086]
[1724445211094,0.60556622,63720.0,63719.0,0.0069086]
[1724445212286,0.80233442,63720.0,63719.0,0.0069086]
[1724445212506,0.91939106,63720.0,63719.0,0.0069086]
[1724445213291,0.92179561,63720.0,63719.0,0.0019086]
[1724445214347,0.57241421,63720.0,63719.0,0.0019086]
[1724445214549,0.58450412,63720.0,63719.0,0.0029298]
[1724445214762,0.88628721,63720.0,63719.0,0.0029298]
[1724445214952,0.89837679,63720.0,63719.0,0.0029298]
[1724445215290,0.89837679,63720.0,63719.0,0.0028172]
[1724445215493,0.89837679,63720.0,63719.0,0.0029298]
[1724445216142,0.57303569,63720.0,63719.0,0.0029298]
[1724445216343,0.59764433,63720.0,63719.0,0.0029298]
[1724445216543,0.50400782,63720.0,63719.0,0.0029298]
[1724445216706,0.18154464,63720.0,63719.0,0.0028172]
[1724445216903,0.59815117,63720.0,63719.0,0.0028172]
[1724445217321,0.45330528,63720.0,63719.0,0.0028172]
[1724445217528,0.59815117,63720.0,63719.0,0.0029298]
[1724445217727,0.61024113,63720.0,63719.0,0.0029298]
[1724445217940,0.34757866,63720.0,63719.0,0.1598688]
[1724445218165,0.09482189,63720.0,63719.0,0.0029298]
[1724445218798,0.09482189,63720.0,63719.0,0.5675468]
[1724445219170,0.02460864,63720.0,63719.0,0.8814248]
[1724445220894,0.02560864,63720.0,63719.0,0.8845162]
[1724445221093,0.02560864,63720.0,63719.0,0.8875162]
[1724445221297,0.02460864,63720.0,63719.0,0.8825162]
[1724445221498,0.02560864,63720.0,63719.0,0.8845162]
[1724445221818,0.02560864,63720.0,63719.0,0.8945162]
[1724445222269,0.02460864,63720.0,63719.0,0.8895162]
[1724445223576,0.02560864,63720.0,63719.0,0.8945162]
[1724445224439,0.02560864,63720.0,63719.0,0.8845162]
[1724445224816,0.02560864,63720.0,63719.0,0.8945162]
[1724445227165,0.02560864,63720.0,63719.0,0.0159086]
[1724445227375,0.02560864,63720.0,63719.0,0.0160212]
[1724445227792,1.52841964,63720.0,63719.0,0.0159086]
[1724445227992,2.1730734,63720.0,63719.0,0.0159086]
[1724445228202,2.2730734,63720.0,63719.0,1e-08]
[1724445228400,2.03225981,63720.0,63719.0,1e-08]
[1724445228828,2.42341055,63720.0,63719.0,1e-08]
[1724445229028,0.1184,63713.0,63710.0,0.0001126]
[1724445229233,0.21201423,63713.0,63712.0,0.0001126]
[1724445229444,0.53913622,63713.0,63712.0,0.0001126]
[1724445229860,0.56374776,63713.0,63712.0,0.0001126]
[1724445230524,0.45805722,63713.0,63712.0,0.0001126]
[1724445230750,0.45905722,63713.0,63712.0,0.0001126]
[1724445230977,0.14501154,63713.0,63712.0,0.008]
[1724445231217,0.19058911,63713.0,63712.0,0.008]
[1724445231877,0.19058911,63713.0,63712.0,0.164956]
[1724445232106,0.19058911,63713.0,63712.0,0.008]
[1724445232510,0.1204,63713.0,63712.0,0.008]
[1724445233971,0.12866231,63713.0,63712.0,0.008]
[1724445235845,0.12866231,63713.0,63712.0,0.0081126]
[1724445235998,0.19885142,63713.0,63712.0,0.0081126]
[1724445237249,0.12866231,63713.0,63712.0,0.0081126]
[1724445237379,0.04876802,63713.0,63712.0,0.4789806]
[1724445237777,0.04876802,63713.0,63712.0,0.478868]
[1724445237975,0.002,63713.0,63712.0,0.478868]
[1724445238177,0.04876802,63713.0,63712.0,0.478868]
[1724445238384,0.002,63713.0,63712.0,0.4797766]
[1724445239041,0.002,63713.0,63712.0,0.4798892]
[1724445239247,0.002,63713.0,63712.0,0.4797766]
[1724445239401,0.04876802,63713.0,63712.0,0.4798892]
[1724445240215,0.04876802,63713.0,63712.0,0.1658646]
[1724445240419,0.04876802,63713.0,63712.0,0.1659772]
[1724445240627,0.04876802,63713.0,63712.0,0.4798892]
[1724445241310,0.04876802,63713.0,63712.0,0.0089086]
[1724445241510,0.002,63713.0,63712.0,0.0090212]
[1724445242070,0.002,63713.0,63712.0,0.0089086]
[1724445242491,0.07218911,63713.0,63712.0,0.0089086]
[1724445242697,0.22914211,63713.0,63712.0,0.0089086]
[1724445242896,0.158953,63713.0,63712.0,0.0089086]
[1724445243478,0.47286,63713.0,63712.0,0.0089086]
[1724445243684,0.22908048,63713.0,63712.0,0.0089086]
[1724445243886,0.00300002,63713.0,63712.0,0.0089086]
[1724445244752,0.04976161,63713.0,63712.0,0.0089086]
[1724445244953,0.15995302,63713.0,63712.0,0.0089086]
[1724445245273,0.23009209,63713.0,63712.0,0.0089086]
[1724445245412,0.15995302,63713.0,63712.0,0.0089086]
[1724445246237,0.20670068,63713.0,63712.0,0.0089086]
[1724445246447,0.15995302,63713.0,63712.0,0.0090212]
[1724445247525,0.54399909,63713.0,63712.0,0.0089086]
[1724445248157,1.98056922,63713.0,63712.0,1e-08]
[1724445248592,2.36593439,63713.0,63712.0,1e-08]
[1724445248800,2.12464455,63713.0,63712.0,1e-08]
[1724445249005,2.12364455,63713.0,63712.0,1e-08]
[1724445249243,1.97956922,63713.0,63712.0,1e-08]
[1724445249442,1.98656588,63713.0,63712.0,1e-08]
[1724445249655,2.13106741,63713.0,63712.0,0.00100001]
[1724445249863,2.13295481,63713.0,63712.0,0.00100001]
[1724445250215,1.5827053,63713.0,63712.0,0.00100001]
[1724445250496,1.3694053,63713.0,63712.0,1e-08]
[1724445250676,1.6833123,63713.0,63712.0,0.00100001]
[1724445250872,1.5025053,63713.0,63712.0,0.00100001]
[1724445251283,1.9039123,63713.0,63712.0,0.00100001]
[1724445251479,2.06916831,63713.0,63712.0,0.00100001]
[1724445251851,2.05916831,63713.0,63712.0,0.00100001]
[1724445252053,2.06116831,63713.0,63712.0,0.00100001]
[1724445252255,2.07216831,63713.0,63712.0,0.00100001]
[1724445252470,2.07216831,63713.0,63712.0,1e-08]
[1724445252471,1.57928253,63713.0,63712.0,1e-08]
[1724445252668,1.56828253,63713.0,63712.0,1e-08]
[1724445252869,1.5682859,63713.0,63712.0,1e-08]
[1724445253041,1.5912859,63713.0,63712.0,1e-08]
[1724445253474,1.5802859,63713.0,63712.0,1e-08]
[1724445253626,1.8821929,63713.0,63712.0,1e-08]
[1724445253832,1.9051929,63713.0,63712.0,1e-08]
[1724445254116,1.5912859,63713.0,63712.0,1e-08]
[1724445254272,1.5792859,63713.0,63712.0,1e-08]
[1724445254637,1.8931929,63713.0,63712.0,1e-08]
[1724445254832,1.5792859,63713.0,63712.0,1e-08]
[1724445255057,1.5682859,63713.0,63712.0,1e-08]
[1724445255712,1.56820338,63713.0,63712.0,1e-08]
[1724445255940,1.5912849,63713.0,63712.0,1e-08]
[1724445256136,1.74326368,63713.0,63712.0,1e-08]
[1724445256375,1.73226368,63713.0,63712.0,1e-08]
[1724445256496,1.74326368,63713.0,63712.0,1e-08]
[1724445256702,1.74126368,63713.0,63712.0,1e-08]
[1724445257097,1.75026368,63713.0,63712.0,1e-08]
[1724445257354,1.86707524,63713.0,63712.0,1e-08]
[1724445257760,1.75026368,63713.0,63712.0,1e-08]
[1724445258096,1.74126368,63713.0,63712.0,1e-08]
[1724445258455,1.74926368,63713.0,63712.0,1e-08]
[1724445258669,1.74026368,63713.0,63712.0,1e-08]
[1724445258915,1.73226368,63713.0,63712.0,1e-08]
[1724445259030,1.43243028,63713.0,63712.0,1e-08]
[1724445259230,1.7509368,63713.0,63712.0,1e-08]
[1724445259811,1.7419368,63713.0,63712.0,1e-08]
[1724445260034,1.7499368,63713.0,63712.0,1e-08]
[1724445260240,1.7409368,63713.0,63712.0,1e-08]
[1724445260613,2.0548438,63713.0,63712.0,1e-08]
[1724445261022,1.7409368,63713.0,63712.0,1e-08]
[1724445261438,1.86572737,63713.0,63712.0,1e-08]
[1724445263130,0.785805,63710.0,63709.0,0.0009086]
[1724445263337,1.0618895,63710.0,63709.0,0.0009086]
[1724445264554,1.13196635,63710.0,63709.0,0.0009086]
[1724445264759,1.0668895,63710.0,63709.0,0.0009086]
[1724445264954,1.13696656,63710.0,63709.0,0.0009086]
[1724445265336,1.05480798,63710.0,63709.0,0.0009086]
[1724445265539,1.13696974,63710.0,63709.0,0.0009086]
[1724445265742,1.14196974,63710.0,63709.0,0.0009086]
[1724445267502,1.07189268,63710.0,63709.0,0.0009086]
[1724445268531,1.47600595,63710.0,63709.0,0.0009086]
[1724445268724,1.47609036,63710.0,63709.0,0.0009086]
[1724445269344,1.38256785,63710.0,63709.0,0.0009086]
[1724445270177,1.54654663,63710.0,63709.0,0.0009086]
[1724445270380,1.66344977,63710.0,63709.0,0.0009086]
[1724445271653,1.54654663,63710.0,63709.0,0.0009086]
[1724445272150,1.54711593,63710.0,63709.0,0.0009086]
[1724445272296,1.23319393,63710.0,63709.0,0.0009086]
[1724445272530,1.54711593,63710.0,63709.0,0.0009086]
[1724445273244,1.23319393,63710.0,63709.0,0.0009086]
[1724445273652,1.06921515,63710.0,63709.0,0.0009086]
[1724445273984,1.38313715,63710.0,63709.0,0.0009086]
[1724445274193,1.38456334,63710.0,63709.0,0.0009086]
[1724445275083,1.37247864,63710.0,63709.0,0.0009086]
[1724445275284,1.38456987,63710.0,63709.0,0.0009086]
[1724445275846,1.50735835,63710.0,63709.0,0.0009086]
[1724445276764,1.07064787,63710.0,63709.0,0.0009086]
[1724445277758,1.38456987,63710.0,63709.0,0.0009086]
[1724445277986,1.49236987,63710.0,63709.0,0.0009086]
[1724445278364,1.89639187,63710.0,63709.0,0.0009086]
[1724445278599,1.58246987,63710.0,63709.0,0.0009086]
[1724445278849,1.74534656,63710.0,63709.0,0.0009086]
[1724445279244,1.88585965,63710.0,63709.0,0.0009086]
[1724445281457,1.87376842,63710.0,63709.0,0.0009086]
[1724445281660,1.88585267,63710.0,63709.0,0.0009086]
[1724445281873,1.88585272,63710.0,63709.0,0.0009086]
[1724445282086,1.88585272,63710.0,63697.0,0.009086]
[1724445282087,1.299916,63699.0,63697.0,0.009086]
[1724445282288,1.92447607,63699.0,63697.0,0.009086]
[1724445282510,1.03953607,63699.0,63697.0,0.009086]
[1724445282873,1.05961985,63699.0,63697.0,0.009086]
[1724445283085,0.74564385,63699.0,63697.0,0.009086]
[1724445283251,0.74464385,63699.0,63697.0,0.009086]
[1724445283473,0.59365585,63699.0,63698.0,0.116486]
[1724445283805,0.59876731,63699.0,63698.0,0.116486]
[1724445284032,0.59576731,63699.0,63698.0,0.116486]
[1724445284454,0.75275531,63699.0,63698.0,0.009086]
[1724445284656,0.75375531,63699.0,63698.0,0.009086]
[1724445284871,1.49010731,63699.0,63698.0,0.009086]